[Event "Gibraltar Challengers A 2020"]
[Site "Caleta"]
[Date "2020.01.21"]
[Round "3.23"]
[White "Vila Dupla, Aurelio"]
[Black "Gostelow, David W"]
[Result "1-0"]
[ECO "D60"]
[WhiteElo "2092"]
[BlackElo "1901"]
[Annotator "NA RC"]
[PlyCount "107"]
[EventDate "2020.01.20"]
[EventType "swiss"]
[EventCountry "GGB"]
[SourceTitle "playchess.com"]
[Source "ChessBase"]
[SourceQuality "1"]
[TimeControl "6600+10"]

1. Nf3 {[%emt 0:00:00]} d5 {[%emt 0:05:38]} 2. d4 {[%emt 0:00:08]} Nf6 {[%emt 0:00:19]} 3. c4 {[%emt 0:00:18]} c6 {[%emt 0:00:03]} 4. Nc3 {[%emt 0:01:02]} e6 {[%emt 0:00:31]} 5. Qb3 {[%emt 0:05:12]} Nbd7 {[%emt 0:05:35]} 6. Bg5 {[%emt 0:02:44]} Be7 {[%emt 0:02:01]} 7. e3 {[%emt 0:00:53]} O-O {[%emt 0:00:31]} 8. Bd3 {[%emt 0:00:15]} h6 {[%emt 0:00:22] D60: Queen's Gambit Declined: Classical: Unusual White 7th moves} 9. Bf4 {[%emt 0:01:36]} Nh5 $146 {[%emt 0:06:25]} ({Predecessor:} 9... dxc4 10. Qxc4 Nd5 11. Bg3 Nb4 12. Bb1 b6 13. Qb3 Ba6 14. Qd1 c5 15. a3 Nd5 16. Nxd5 exd5 {½-½ (49) Roiz,M (2614)-Aaron,D (2322) Las Vegas 2013}) 10. Bg3 {[%emt 0:08:39]} Nxg3 {[%emt 0:10:34]} 11. hxg3 {[%emt 0:00:02]} f5 {[%emt 0:00:43]} 12. cxd5 {[%emt 0:01:25]} cxd5 {[%emt 0:04:10]} 13. Rc1 {[%emt 0:14:50]} a6 {[%emt 0:08:28]} 14. Nh4 {[%emt 0:06:39]} Bxh4 {[%emt 0:11:12]} 15. Rxh4 {[%emt 0:00:13]} Qb6 {[%emt 0:01:28]} 16. Na4 {[%emt 0:13:05]} Qxb3 17. axb3 {[%emt 0:00:01]} b5 {[%emt 0:08:20]} 18. Nc5 {[%emt 0:00:01]} Nxc5 {[%emt 0:02:09]} 19. Rxc5 {[%emt 0:00:09]} Bd7 {[%emt 0:01:38]} 20. Kd2 {[%emt 0:03:36]} Rfc8 {[%emt 0:02:06]} 21. Rxc8+ {[%emt 0:01:01]} Rxc8 {[%emt 0:00:06]} 22. Rh1 {[%emt 0:01:07]} Kf7 {[%emt 0:01:06]} 23. Be2 {[%emt 0:03:59]} Kf6 {[%emt 0:06:06]} 24. g4 {[%emt 0:02:06]} Rc7 {[%emt 0:08:53]} 25. Ra1 {[%emt 0:01:32]} Bc8 {[%emt 0:00:41]} 26. Bf3 {[%emt 0:02:22]} Bb7 {[%emt 0:00:31]} 27. Kd3 {[%emt 0:02:26]} Rc8 {[%emt 0:00:28]} 28. g3 {[%emt 0:02:39]} Rc7 {[%emt 0:00:29]} 29. Be2 {[%emt 0:00:52]} Rc8 {[%emt 0:00:32]} 30. Kd2 {[%emt 0:00:10]} Rc7 {[%emt 0:00:16]} 31. Rh1 {[%emt 0:00:56]} Rc8 {[%emt 0:00:46]} 32. Rh5 {[%emt 0:02:06]} Rc7 {[%emt 0:01:30]} 33. gxf5 {[%emt 0:01:06]} exf5 {[%emt 0:00:06]} 34. Bd3 {[%emt 0:00:29]} Bc8 {[%emt 0:00:16]} 35. g4 {[%emt 0:00:27]} fxg4 {[%emt 0:11:17]} 36. Rxd5 {[%emt 0:00:13]} Ke6 {[%emt 0:01:34]} (36... Ke7 $11 {keeps the balance.}) 37. e4 {[%emt 0:02:53]} Rf7 {[%emt 0:01:07]} 38. Ke3 {[%emt 0:07:12]} Bb7 {[%emt 0:00:08]} 39. Re5+ {[%emt 0:00:06]} Kd6 {[%emt 0:00:18]} 40. Be2 {[%emt 0:00:05]} Bc8 {[%emt 0:00:36]} 41. Re8 {[%emt 0:00:56]} Rc7 {[%emt 0:01:03]} 42. e5+ {[%emt 0:00:33]} Kd7 {[%emt 0:01:40]} 43. Rg8 {[%emt 0:01:12]} Kc6 {[%emt 0:00:02]} 44. Rd8 {[%emt 0:00:59]} Bd7 {[%emt 0:00:42]} 45. Ke4 {[%emt 0:00:25]} h5 {[%emt 0:00:45]} 46. d5+ {[%emt 0:00:13]} Kc5 {[%emt 0:00:05]} 47. e6 {[%emt 0:01:04]} Bxe6 {[%emt 0:01:42]} 48. dxe6 {[%emt 0:00:08]} Kb4 {[%emt 0:00:14]} 49. Rd7 {[%emt 0:00:18]} Rc6 {[%emt 0:00:48]} 50. Kf5 {[%emt 0:01:00]} Rc2 {[%emt 0:00:16]} 51. Rd4+ $18 {[%emt 0:00:43]} Kxb3 {[%emt 0:00:32]} 52. Bd1 {[%emt 0:01:05]} Kxb2 {[%emt 0:00:16]} 53. Bxc2 {[%emt 0:00:06]} Kxc2 {[%emt 0:00:06]} 54. e7 {[%emt 0:00:15]} 1-0

[Event "Gibraltar Challengers A 2020"]
[Site "Caleta"]
[Date "2020.01.21"]
[Round "3.25"]
[White "Hermes, Geoff R"]
[Black "Vinal Gutierrez, Pedro"]
[Result "0-1"]
[ECO "D00"]
[WhiteElo "1832"]
[BlackElo "2069"]
[Annotator "NA RC"]
[PlyCount "34"]
[EventDate "2020.01.20"]
[EventType "swiss"]
[EventCountry "GGB"]
[SourceTitle "playchess.com"]
[Source "ChessBase"]
[SourceQuality "1"]
[TimeControl "6600+10"]

{[%evp 8,34,0,0,32767,32767,32767,32767,32767,22,32767,-3,9,32767,32767,32767,32767,-81,-62,32767,-87,32767,32767,32767,-291,32767,32767,32767,-512]} 1. d4 {[%emt 0:02:59]} d5 {[%emt 0:00:00]} 2. Bf4 {[%emt 0:00:07]} Nf6 {[%emt 0:00:00]} 3. e3 {[%emt 0:00:07]} c5 {[%emt 0:00:07]} 4. Nd2 {[%emt 0:01:24]} Qb6 {[%emt 0:00:55]} 5. dxc5 {[%emt 0:03:26]} Qxc5 {[%emt 0:00:20]} 6. Bd3 {[%emt 0:01:43]} Nc6 {[%emt 0:00:30]} 7. Ngf3 {[%emt 0:02:24]} Bg4 {[%emt 0:01:59]} 8. h3 {[%emt 0:00:42]} Bh5 {[%emt 0:00:15]} 9. Nb3 {[%emt 0:01:49]} Qb6 {[%emt 0:00:30]} 10. g4 {[%emt 0:03:20]} Bg6 {[%emt 0:00:25]} 11. Ne5 {[%emt 0:01:24]} e6 {[%emt 0:07:11]} 12. Bxg6 {[%emt 0:17:53]} (12. Qe2 $11) 12... hxg6 {[%emt 0:00:28]} 13. Qf3 {[%emt 0:01:58]} a5 {[%emt 0:07:27]} 14. Nxf7 {[%emt 0:09:40]} Kxf7 {[%emt 0:00:43]} 15. g5 {[%emt 0:00:07]} a4 {[%emt 0:04:10]} 16. gxf6 {[%emt 0:01:50]} axb3 {[%emt 0:04:20]} 17. Bg5 {[%emt 0:06:16]} Ne5 $19 {[%emt 0:00:41]} (17... Ke8 {[%emt 0:07:59]}) 0-1

[Event "Gibraltar Challengers A 2020"]
[Site "Caleta"]
[Date "2020.01.21"]
[Round "3.26"]
[White "Erdogan, Hassan"]
[Black "Kukic, Boris"]
[Result "1-0"]
[ECO "D02"]
[WhiteElo "1830"]
[BlackElo "2056"]
[Annotator "NA RC"]
[PlyCount "74"]
[EventDate "2020.01.20"]
[EventType "swiss"]
[EventCountry "GGB"]
[SourceTitle "playchess.com"]
[Source "ChessBase"]
[SourceQuality "1"]
[TimeControl "6600+10"]

1. d4 {[%emt 0:00:00]} d5 {[%emt 0:00:04]} 2. e3 {[%emt 0:00:27]} Bf5 {[%emt 0:00:32]} 3. Bd3 {[%emt 0:00:19]} Bg6 {[%emt 0:00:22]} 4. Nf3 {[%emt 0:00:27]} e6 {[%emt 0:00:07]} 5. O-O {[%emt 0:01:20]} Nf6 {[%emt 0:00:09]} (5... c6 6. Ne5 Nd7 7. Nxg6 hxg6 8. Nc3 Qh4 9. h3 Ngf6 10. Re1 g5 11. e4 g4 12. exd5 cxd5 {1-0 (74) Jussupow,A (2582)-Moskalenko,A (2522) Katowice 2017}) 6. c3 {[%emt 0:01:31] D02: 1 d4 d5 2 Nf3 sidelines, including 2...Nf6 3 g3 and 2...Nf6 3 Bf4} Bd6 {[%emt 0:00:14]} 7. b3 $146 {[%emt 0:00:29]} ({Predecessor:} 7. Qe2 Nbd7 8. Nbd2 O-O 9. e4 dxe4 10. Nxe4 Be7 11. Nxf6+ Bxf6 12. Bxg6 hxg6 13. h3 {0-1 (47) Dziallas,D (1103)-Lai,H (1664) Verden 2014}) 7... Qe7 {[%emt 0:00:19]} 8. Bb2 {[%emt 0:02:11]} Nbd7 {[%emt 0:00:16]} 9. Qc2 {[%emt 0:04:05]} c6 {[%emt 0:00:18]} (9... e5 $5 {[%cal Re5e4]} 10. Bf5 e4 $15) 10. Nbd2 {[%emt 0:00:21]} Rc8 {[%emt 0:00:57]} 11. Rac1 {[%emt 0:03:05]} a6 {[%emt 0:00:21]} 12. Rfe1 {[%emt 0:05:43]} c5 {[%emt 0:00:34]} 13. Qb1 {[%emt 0:09:34]} O-O {[%emt 0:00:18]} 14. Bxg6 {[%emt 0:01:39]} fxg6 {[%emt 0:01:19]} 15. c4 {[%emt 0:07:31]} e5 {[%emt 0:02:58] [#]} (15... dxc4 $14 16. Nxc4 cxd4) 16. dxe5 $1 {[%emt 0:01:24]} Bxe5 {[%emt 0:00:53]} 17. Nxe5 {[%emt 0:10:04]} Nxe5 {[%emt 0:00:12]} 18. Bxe5 {[%emt 0:14:42]} Qxe5 {[%emt 0:00:19]} 19. Nf3 {[%emt 0:00:01]} Qe6 {[%emt 0:01:14]} 20. cxd5 {[%emt 0:00:07]} Nxd5 {[%emt 0:00:52]} 21. Qb2 {[%emt 0:03:00]} Nb4 {[%emt 0:03:49]} 22. Qe2 {[%emt 0:06:21]} b5 {[%emt 0:01:04]} 23. a3 {[%emt 0:03:28]} Nd5 $11 {[%emt 0:00:17]} 24. Red1 {[%emt 0:09:23]} Nf4 {[%emt 0:01:24]} 25. Qd2 {[%emt 0:00:22]} Nxg2 {[%emt 0:00:58]} 26. Ng5 {[%emt 0:00:29]} Qg4 {[%emt 0:00:41]} 27. Qd5+ {[%emt 0:00:05]} Kh8 {[%emt 0:00:27]} 28. Qxg2 {[%emt 0:00:09]} Qe2 {[%emt 0:00:27]} 29. Rf1 {[%emt 0:01:14]} c4 {[%emt 0:00:42]} 30. bxc4 {[%emt 0:00:58]} bxc4 {[%emt 0:00:17]} 31. Qh3 {[%emt 0:00:24]} h6 {[%emt 0:00:19]} 32. Ne6 {[%emt 0:02:27]} Rfe8 {[%emt 0:00:19]} 33. Nf4 {[%emt 0:00:06]} Qb2 {[%emt 0:00:48]} 34. Nxg6+ {[%emt 0:00:21]} Kg8 {[%emt 0:00:37]} 35. Ne7+ {[%emt 0:00:09]} Rxe7 {[%emt 0:00:13]} 36. Qxc8+ {[%emt 0:00:02]} Kh7 {[%emt 0:00:13]} 37. Rxc4 {[%emt 0:00:29]} Rc7 {[%emt 0:00:26]} 1-0

[Event "Gibraltar Challengers A 2020"]
[Site "Caleta"]
[Date "2020.01.21"]
[Round "3.27"]
[White "Ankitha Goud Palle"]
[Black "Karlsson, Jorgen"]
[Result "1-0"]
[ECO "E61"]
[WhiteElo "1761"]
[BlackElo "2054"]
[Annotator "NA RC"]
[PlyCount "83"]
[EventDate "2020.01.20"]
[EventType "swiss"]
[EventCountry "GGB"]
[SourceTitle "playchess.com"]
[Source "ChessBase"]
[SourceQuality "1"]
[TimeControl "6600+10"]

1. Nf3 {[%emt 0:00:00]} g6 {[%emt 0:00:01]} 2. d4 {[%emt 0:00:14]} d6 {[%emt 0:00:08]} 3. c4 {[%emt 0:04:16]} Bg7 {[%emt 0:00:25]} 4. Nc3 {[%emt 0:00:20]} Bg4 {[%emt 0:01:04]} 5. e3 {[%emt 0:00:34]} Nf6 {[%emt 0:01:50]} 6. Be2 {[%emt 0:00:21]} O-O {[%emt 0:01:58]} 7. O-O {[%emt 0:00:11]} Na6 {[%emt 0:01:49] E61: King's Indian: Early deviations for White, including Smyslov System} (7... Nc6 8. d5 Nb8 9. h3 Bd7 10. e4 c6 11. Be3 Na6 12. Nd2 Rc8 13. Rc1 e6 14. dxe6 Bxe6 15. Nf3 Re8 {0-1 (38) Wang,H (2709)-Mamedyarov,S (2799) Huaian 2017}) 8. a3 {[%emt 0:02:09]} c5 {[%emt 0:02:06]} 9. d5 {[%emt 0:00:53]} Nc7 {[%emt 0:04:05]} 10. e4 {[%emt 0:02:06]} a6 {[%emt 0:03:03]} 11. a4 $146 {[%emt 0:01:28]} ({Predecessor:} 11. e5 Nfe8 12. exd6 Nxd6 13. Bf4 Bxf3 14. Bxf3 Nxc4 {0-1 (50) Castro Uceda,J (1558)-Fernandez Garcia,E (1624) Madrid 2016}) 11... b6 {[%emt 0:01:10]} 12. h3 {[%emt 0:00:53]} Bd7 {[%emt 0:03:25]} 13. e5 {[%emt 0:15:31]} dxe5 {[%emt 0:09:49]} 14. Nxe5 {[%emt 0:00:31]} Nfe8 {[%emt 0:01:38]} 15. Bf4 {[%emt 0:03:57]} Nd6 {[%emt 0:00:43]} 16. Bd3 {[%emt 0:02:39]} Nce8 {[%emt 0:13:05]} 17. Re1 {[%emt 0:03:11]} Nf6 {[%emt 0:01:29]} 18. Qd2 {[%emt 0:05:24]} Re8 {[%emt 0:03:53]} 19. Bh6 {[%emt 0:04:02]} Bh8 {[%emt 0:03:00]} 20. Qg5 {[%emt 0:03:55]} Nf5 {[%emt 0:01:33]} 21. Bxf5 {[%emt 0:10:34]} Bxf5 {[%emt 0:00:12]} 22. Re3 {[%emt 0:00:47]} Nh5 {[%emt 0:17:14]} 23. Nc6 {[%emt 0:03:32]} Bf6 {[%emt 0:08:44]} 24. Nxd8 {[%emt 0:02:47]} Bxg5 {[%emt 0:00:08]} 25. Bxg5 {[%emt 0:00:17]} Raxd8 {[%emt 0:03:19]} 26. g4 {[%emt 0:03:08]} f6 {[%emt 0:04:36]} 27. Bh6 {[%emt 0:00:16]} e5 {[%emt 0:02:34]} 28. gxh5 {[%emt 0:07:21]} Kf7 {[%emt 0:00:24]} 29. Rg3 {[%emt 0:01:09]} Rg8 {[%emt 0:03:26]} 30. hxg6+ {[%emt 0:03:11]} Rxg6 {[%emt 0:00:13]} 31. Rxg6 {[%emt 0:00:08]} Kxg6 {[%emt 0:00:16]} 32. Be3 {[%emt 0:00:13]} a5 {[%emt 0:00:29]} 33. f4 {[%emt 0:09:02]} Bxh3 {[%emt 0:01:54]} 34. fxe5 {[%emt 0:01:49]} fxe5 {[%emt 0:00:08]} 35. Ne4 {[%emt 0:01:54]} Bf5 {[%emt 0:00:52]} 36. Nd2 {[%emt 0:00:10]} Bd3 {[%emt 0:02:07]} 37. Kh2 {[%emt 0:01:11]} Rd6 {[%emt 0:06:22]} 38. Rg1+ {[%emt 0:00:19]} Kf7 {[%emt 0:00:22]} 39. Nf3 {[%emt 0:02:42]} Kf6 {[%emt 0:01:08]} 40. Bg5+ {[%emt 0:01:21]} Kf5 {[%emt 0:00:16]} 41. Nh4+ {[%emt 0:00:29]} Ke4 {[%emt 0:00:12]} 42. Rg4# {[%emt 0:00:11]} 1-0

[Event "Gibraltar Challengers A 2020"]
[Site "Caleta"]
[Date "2020.01.21"]
[Round "3.28"]
[White "Kunnavakkam, Sudarshanagopal Vin"]
[Black "Verhoef, Jaap"]
[Result "1/2-1/2"]
[ECO "C44"]
[WhiteElo "1786"]
[BlackElo "2015"]
[Annotator "NA RC"]
[PlyCount "101"]
[EventDate "2020.01.20"]
[EventType "swiss"]
[EventCountry "GGB"]
[SourceTitle "playchess.com"]
[Source "ChessBase"]
[SourceQuality "1"]
[TimeControl "6600+10"]

1. e4 {[%emt 0:00:50]} e5 {[%emt 0:00:00]} 2. d4 {[%emt 0:00:16]} exd4 {[%emt 0:00:00]} 3. c3 {[%emt 0:00:07]} Nf6 {[%emt 0:00:03]} 4. e5 {[%emt 0:02:18]} Ne4 {[%emt 0:00:03]} 5. Nf3 {[%emt 0:03:05]} Nc6 {[%emt 0:00:25]} (5... dxc3 $11 6. Nxc3 Nxc3 7. bxc3 d5) 6. Nxd4 {[%emt 0:04:14] C44: Ponziani Opening and Scotch Gambit} (6. Qe2 d5 7. exd6 f5 8. Nbd2 Bxd6 9. Nxe4 fxe4 10. Qxe4+ Qe7 11. Qxe7+ Bxe7 12. Nxd4 Nxd4 13. cxd4 Be6 14. Be2 O-O-O 15. Be3 Bf6 {0-1 (49) Jones,G (2677)-Le,Q (2715) chess.com INT 2018}) 6... Nxd4 {[%emt 0:07:07]} 7. Qxd4 {[%emt 0:02:18]} d5 {[%emt 0:00:53]} 8. exd6 {[%emt 0:00:20]} Nxd6 {[%emt 0:00:02]} 9. Bf4 $146 {[%emt 0:02:10]} ({Predecessor:} 9. Bd3 Bf5 10. O-O Bxd3 11. Qxd3 Be7 12. Re1 O-O 13. Bf4 Re8 14. Na3 Bf8 15. Nb5 Qd7 16. Nxd6 cxd6 17. Rad1 Qa4 {½-½ (17) Diaz,J-Jimenez Zerquera,E Camaguey 1974}) 9... Be6 {[%emt 0:02:00]} 10. Bd3 {[%emt 0:00:40]} Qc8 {[%emt 0:27:17]} (10... Nc4 $11 {remains equal.}) 11. O-O {[%emt 0:02:17]} c5 {[%emt 0:00:13]} 12. Qe5 {[%emt 0:02:27]} Qc6 {[%emt 0:07:27]} 13. Na3 {[%emt 0:05:24]} Be7 {[%emt 0:01:24]} 14. Rfd1 {[%emt 0:02:14]} O-O {[%emt 0:01:08]} 15. Bg5 {[%emt 0:06:21]} Bxg5 {[%emt 0:04:18]} 16. Bxh7+ {[%emt 0:01:32]} Kxh7 {[%emt 0:00:01]} 17. Rxd6 {[%emt 0:00:07]} Qxd6 {[%emt 0:14:25]} (17... Qc8 $16 18. Qxg5 Rd8 19. Rxd8 Qxd8 20. Qxc5 Qd2) 18. Qxd6 {[%emt 0:00:23]} Rfd8 {[%emt 0:00:02]} 19. Qxc5 {[%emt 0:00:33]} Rd5 {[%emt 0:00:01]} 20. Qb4 {[%emt 0:00:58]} Rad8 {[%emt 0:00:40]} 21. Rf1 {[%emt 0:07:06]} Bf5 {[%emt 0:08:37]} 22. Qxb7 {[%emt 0:03:38]} R8d7 {[%emt 0:00:12]} 23. Qb3 {[%emt 0:00:46]} Bd3 {[%emt 0:00:42]} 24. Ra1 {[%emt 0:01:49]} Be2 {[%emt 0:00:14]} 25. Qc2+ {[%emt 0:02:45]} Bd3 {[%emt 0:00:01]} 26. Qd1 {[%emt 0:00:20]} Bb5 {[%emt 0:03:49]} 27. Qxd5 $2 {[%emt 0:13:30]} ({White should try} 27. Qg4 $18 Bc6 28. Nc2) 27... Rxd5 {[%emt 0:00:06]} 28. c4 {[%emt 0:00:03]} Rd2 {[%emt 0:02:15]} 29. Nxb5 {[%emt 0:00:16]} Rxb2 {[%emt 0:00:16]} 30. Nxa7 {[%emt 0:00:14]} Bf6 {[%emt 0:00:07]} 31. Rc1 {[%emt 0:02:19]} Bd4 {[%emt 0:00:28]} 32. Nc6 {[%emt 0:02:38]} Bxf2+ {[%emt 0:00:09]} 33. Kh1 {[%emt 0:00:06]} Rxa2 {[%emt 0:00:36]} 34. Ne5 {[%emt 0:00:11]} f6 $11 {[%emt 0:01:34]} 35. Nd3 {[%emt 0:00:08]} Be3 {[%emt 0:01:17]} 36. Re1 {[%emt 0:00:33]} Bd2 {[%emt 0:00:14]} 37. Rd1 {[%emt 0:01:14]} Rc2 {[%emt 0:00:09]} 38. g3 {[%emt 0:00:35]} Be3 {[%emt 0:00:01]} 39. Re1 {[%emt 0:00:24]} Bd4 {[%emt 0:00:06]} 40. c5 {[%emt 0:00:20]} Bxc5 {[%emt 0:00:10]} 41. Nxc5 {[%emt 0:00:22]} Rxc5 {[%emt 0:00:01]} 42. Re2 {[%emt 0:00:07]} Rc3 {[%emt 0:00:04]} 43. Kg2 {[%emt 0:00:12]} Kg6 {[%emt 0:00:14]} 44. Ra2 {[%emt 0:00:17]} f5 {[%emt 0:00:19]} 45. h3 {[%emt 0:00:14]} Kh5 {[%emt 0:00:11]} 46. Rf2 {[%emt 0:00:37]} Kg5 {[%emt 0:00:42]} 47. h4+ {[%emt 0:00:26]} Kf6 {[%emt 0:00:01]} 48. g4 {[%emt 0:00:20]} g6 {[%emt 0:00:06]} 49. Rf3 {[%emt 0:01:02]} Rxf3 {[%emt 0:00:08]} 50. Kxf3 {[%emt 0:00:06]} fxg4+ {[%emt 0:00:11]} 51. Kxg4 {[%emt 0:00:05]} 1/2-1/2

[Event "Gibraltar Challengers A 2020"]
[Site "Caleta"]
[Date "2020.01.21"]
[Round "3.29"]
[White "Cannon, Richard J"]
[Black "Patola, Eero"]
[Result "1-0"]
[ECO "A00"]
[WhiteElo "1990"]
[BlackElo "1831"]
[Annotator "NA RC"]
[PlyCount "137"]
[EventDate "2020.01.20"]
[EventType "swiss"]
[EventCountry "GGB"]
[SourceTitle "playchess.com"]
[Source "ChessBase"]
[SourceQuality "1"]
[TimeControl "6600+10"]

1. e4 {[%emt 0:01:22]} d5 {[%emt 0:01:19]} 2. Nc3 {[%emt 0:00:07]} d4 {[%emt 0:01:27]} 3. Nce2 {[%emt 0:00:06]} e5 {[%emt 0:02:22]} 4. Ng3 {[%emt 0:00:07]} Nf6 {[%emt 0:00:28]} 5. Nf3 {[%emt 0:00:48]} Nc6 {[%emt 0:03:33]} 6. Bc4 {[%emt 0:00:25] A00: Irregular Openings} h6 {[%emt 0:01:31]} (6... Bd6 7. d3 Be6 8. Bxe6 fxe6 9. O-O O-O 10. c3 Nd7 11. a3 a6 12. cxd4 exd4 13. b4 Qf6 {1-0 (27) Popchev,M (2285)-Stojanovic,D (2304) Valjevo 2016}) 7. O-O {[%emt 0:00:53]} Bd6 {[%emt 0:05:22]} 8. a3 {[%emt 0:00:52]} Qe7 {[%emt 0:07:28]} 9. d3 {[%emt 0:06:00]} g6 {[%emt 0:02:08]} 10. h3 {[%emt 0:06:28]} Be6 {[%emt 0:01:52]} 11. Nd2 $146 {[%emt 0:00:56]} ({Predecessor:} 11. Bxe6 Qxe6 {1-0 (35) Prior,S (1879)-Watson,D (1630) Gatwick 2011}) 11... O-O-O {[%emt 0:03:18]} 12. Bxe6+ {[%emt 0:00:59]} Qxe6 {[%emt 0:00:42]} 13. Nc4 {[%emt 0:00:23]} Be7 {[%emt 0:00:58]} 14. a4 {[%emt 0:04:02]} ({White should play} 14. b4 $11) 14... h5 {[%emt 0:00:23]} 15. b3 {[%emt 0:08:04]} h4 {[%emt 0:01:00]} 16. Ne2 {[%emt 0:00:51]} Nh5 {[%emt 0:01:02]} 17. f4 {[%emt 0:00:47]} f5 {[%emt 0:02:10]} 18. exf5 $1 {[%emt 0:03:39]} gxf5 {[%emt 0:01:03]} 19. fxe5 {[%emt 0:00:30]} Nxe5 {[%emt 0:00:24]} 20. Nf4 {[%emt 0:00:43]} Nxf4 {[%emt 0:01:19]} 21. Bxf4 {[%emt 0:00:09]} Ng6 {[%emt 0:05:19]} 22. Bh2 {[%emt 0:00:38]} Bg5 {[%emt 0:02:53]} (22... Bb4 $1 $11 {remains equal.}) 23. Qf3 {[%emt 0:01:22]} f4 {[%emt 0:04:59]} 24. Rae1 {[%emt 0:00:51]} Qf5 {[%emt 0:02:19]} 25. Qe4 {[%emt 0:16:24]} Qxe4 {[%emt 0:04:05]} 26. Rxe4 {[%emt 0:00:09]} Rhf8 {[%emt 0:00:22]} 27. Ne5 {[%emt 0:02:27]} Ne7 {[%emt 0:11:05]} 28. Nf3 {[%emt 0:07:45]} Bf6 {[%emt 0:01:22]} 29. Bxf4 {[%emt 0:00:26]} Nf5 {[%emt 0:03:35]} 30. Rfe1 {[%emt 0:02:49]} Ng7 {[%emt 0:04:46]} (30... b6 {is a better defense.} 31. b4 Kb7) 31. Bh6 {[%emt 0:02:34]} Rg8 {[%emt 0:04:49]} 32. Bxg7 {[%emt 0:04:36]} Rxg7 {[%emt 0:00:25]} 33. Nxh4 {[%emt 0:00:50]} Rh8 {[%emt 0:03:15]} 34. Re8+ {[%emt 0:01:27]} Rxe8 {[%emt 0:00:25]} 35. Rxe8+ {[%emt 0:00:05]} Kd7 {[%emt 0:00:09]} 36. Re4 {[%emt 0:00:09]} c5 {[%emt 0:01:40]} 37. Nf3 {[%emt 0:00:45]} Kd6 {[%emt 0:02:25]} 38. g4 {[%emt 0:00:35]} a6 {[%emt 0:01:10]} 39. Kf2 {[%emt 0:01:12]} b5 {[%emt 0:01:02]} 40. axb5 {[%emt 0:00:08]} axb5 {[%emt 0:00:25]} 41. Kg3 {[%emt 0:00:25]} Kd5 {[%emt 0:00:15]} 42. Rf4 {[%emt 0:00:56]} Be7 {[%emt 0:04:35]} 43. Rf5+ {[%emt 0:00:18]} Ke6 {[%emt 0:00:20]} 44. b4 {[%emt 0:02:34]} Bd6+ {[%emt 0:01:19]} 45. Kg2 {[%emt 0:00:26]} Rc7 {[%emt 0:00:47]} 46. h4 {[%emt 0:07:11]} Rc8 {[%emt 0:00:56]} 47. h5 {[%emt 0:01:05]} Be7 {[%emt 0:01:09]} 48. bxc5 {[%emt 0:02:34]} Bxc5 {[%emt 0:00:45]} 49. Ng5+ {[%emt 0:00:26]} Ke7 {[%emt 0:00:56]} 50. Ne4 {[%emt 0:01:16]} Ba3 {[%emt 0:01:02]} 51. Rf2 {[%emt 0:04:51]} Rg8 {[%emt 0:02:27]} 52. Kh3 {[%emt 0:00:21]} Bc1 {[%emt 0:00:30]} 53. Kh4 {[%emt 0:01:13]} Be3 {[%emt 0:00:17]} 54. Rf5 {[%emt 0:00:28]} b4 {[%emt 0:00:24]} 55. g5 {[%emt 0:02:05]} Rc8 {[%emt 0:00:41]} 56. Rc5 {[%emt 0:00:28]} Rf8 {[%emt 0:00:13]} 57. Nf6 {[%emt 0:00:24]} Kd6 {[%emt 0:01:22]} 58. Rc4 {[%emt 0:02:20]} Rb8 {[%emt 0:01:11]} 59. h6 {[%emt 0:00:53]} Rb5 {[%emt 0:00:29]} 60. Ne4+ {[%emt 0:00:31]} Ke7 {[%emt 0:00:17]} 61. Rc7+ $18 {[%emt 0:01:44]} (61. h7 $142 Bxg5+ 62. Nxg5 Rb8 {[#]} 63. Rxb4 $1 {[%mdl 512]} Rc8 64. Rb6 Rh8 65. Rg6 Kd7 66. Rg8 Rxh7+ 67. Nxh7) 61... Ke6 {[%emt 0:00:47]} 62. h7 {[%emt 0:00:25]} Rb8 {[%emt 0:00:16]} 63. g6 {[%emt 0:00:16]} Bh6 {[%emt 0:00:21]} 64. Kh5 {[%emt 0:00:34]} Bf4 {[%emt 0:00:25]} 65. Rg7 {[%emt 0:01:42]} Be5 {[%emt 0:01:25]} 66. Rg8 {[%emt 0:00:15]} Rb5 {[%emt 0:00:14]} 67. Kg4 {[%emt 0:00:27]} b3 {[%emt 0:00:14]} 68. cxb3 {[%emt 0:00:15]} Rxb3 {[%emt 0:00:12]} 69. Re8+ {[%emt 0:00:08]} 1-0

[Event "Gibraltar Challengers A 2020"]
[Site "Caleta"]
[Date "2020.01.21"]
[Round "3.30"]
[White "O`neil, Jim"]
[Black "Tkadlecek, Petr"]
[Result "1-0"]
[ECO "D00"]
[WhiteElo "1870"]
[BlackElo "1775"]
[Annotator "NA RC"]
[PlyCount "53"]
[EventDate "2020.01.20"]
[EventType "swiss"]
[EventCountry "GGB"]
[SourceTitle "playchess.com"]
[Source "ChessBase"]
[SourceQuality "1"]
[TimeControl "6600+10"]

1. d4 {[%emt 0:07:12]} Nf6 {[%emt 0:00:00]} 2. Nc3 {[%emt 0:00:06]} d5 {[%emt 0:00:19]} 3. Bf4 {[%emt 0:00:06]} c6 {[%emt 0:02:49]} 4. e3 {[%emt 0:00:08]} Bg4 {[%emt 0:01:17]} 5. f3 {[%emt 0:00:54]} Bh5 {[%emt 0:05:17]} 6. g4 {[%emt 0:00:12] D00: 1 d4 d5: Unusual lines} Bg6 {[%emt 0:00:45]} 7. h4 {[%emt 0:00:05]} h6 {[%emt 0:00:13]} 8. Bd3 {[%emt 0:03:16]} Bxd3 {[%emt 0:00:54]} 9. Qxd3 {[%emt 0:00:10]} e6 {[%emt 0:00:27]} 10. O-O-O {[%emt 0:01:36]} Bb4 $146 {[%emt 0:02:00]} ({Predecessor:} 10... Na6 11. Nge2 Qa5 12. Kb1 O-O-O 13. Nc1 {1-0 (69) Romanov,E (2644)-Nurkiewicz,M (2376) Graz 2017}) 11. Nge2 {[%emt 0:01:33]} Nbd7 {[%emt 0:01:37]} 12. a3 {[%emt 0:05:41]} Be7 {[%emt 0:00:38]} 13. Ng3 {[%emt 0:01:11]} Qb6 {[%emt 0:02:47]} 14. g5 {[%emt 0:02:09]} Ng8 {[%emt 0:04:43]} 15. e4 {[%emt 0:11:22]} Qa5 {[%emt 0:05:02]} (15... O-O-O $16) 16. exd5 {[%emt 0:06:00]} cxd5 {[%emt 0:01:58]} 17. Nb5 {[%emt 0:02:29]} Rc8 {[%emt 0:01:20]} 18. Nd6+ {[%emt 0:06:55]} Bxd6 {[%emt 0:00:54]} 19. Bxd6 {[%emt 0:00:07]} Ne7 {[%emt 0:01:56]} 20. Rde1 {[%emt 0:01:41]} hxg5 $2 {[%emt 0:05:09]} (20... Rc6 $14 21. Bxe7 Kxe7) 21. hxg5 {[%emt 0:06:44]} Rh2 $16 {[%emt 0:00:30]} 22. Re2 {[%emt 0:07:08]} Rxh1+ {[%emt 0:06:08]} 23. Nxh1 {[%emt 0:00:06]} Nf5 {[%emt 0:01:11]} 24. Qxf5 {[%emt 0:02:53]} Qa6 {[%emt 0:07:17]} 25. Rxe6+ {[%emt 0:00:38]} Kd8 {[%emt 0:00:24]} 26. Be7+ {[%emt 0:00:40]} Kc7 {[%emt 0:00:29]} 27. Qf4+ {[%emt 0:00:21]} 1-0